[Event "Early-Titled-Tuesday-Blitz-December-26-2023"]
[Site "Chess.com"]
[Date "2023.12.26"]
[Round "9"]
[White "SaqoChess_Twitch"]
[Black "Flawless_Fighter"]
[Result "0-1"]
[WhiteElo "2646"]
[BlackElo "2796"]
[TimeControl "180+1"]
[EndTime "9:48:27 PST"]
[Termination "Flawless_Fighter won by checkmate"]

1. d4 {[%clk 0:03:00.9]} 1... Nf6 {[%clk 0:02:59.5]} 2. c4 {[%clk 0:03:01.5]}
2... e6 {[%clk 0:02:59.5]} 3. Nc3 {[%clk 0:03:02.2]} 3... d5 {[%clk 0:03:00.2]}
4. cxd5 {[%clk 0:03:02]} 4... Nxd5 {[%clk 0:03:01.1]} 5. e4 {[%clk 0:03:01.9]}
5... Nxc3 {[%clk 0:03:00.9]} 6. bxc3 {[%clk 0:03:02.8]} 6... c5 {[%clk
0:03:01.5]} 7. Nf3 {[%clk 0:03:03.2]} 7... cxd4 {[%clk 0:03:02.1]} 8. cxd4
{[%clk 0:03:04.1]} 8... Bb4+ {[%clk 0:03:02.2]} 9. Bd2 {[%clk 0:03:05]} 9...
Bxd2+ {[%clk 0:03:02.5]} 10. Qxd2 {[%clk 0:03:05.9]} 10... O-O {[%clk
0:03:02.8]} 11. Bc4 {[%clk 0:03:06.7]} 11... Nd7 {[%clk 0:03:02.4]} 12. O-O
{[%clk 0:03:07.3]} 12... b6 {[%clk 0:03:02.1]} 13. Rfe1 {[%clk 0:03:04]} 13...
Bb7 {[%clk 0:03:00.7]} 14. Rad1 {[%clk 0:03:04.6]} 14... Nf6 {[%clk 0:02:56.2]}
15. Qf4 {[%clk 0:03:02.7]} 15... Rc8 {[%clk 0:02:55.2]} 16. Bb3 {[%clk
0:03:02.8]} 16... Qc7 {[%clk 0:02:54.6]} 17. Ne5 {[%clk 0:03:02.8]} 17... Nd7
{[%clk 0:02:53.5]} 18. h4 {[%clk 0:02:52.4]} 18... h6 {[%clk 0:02:50.8]} 19. Qg3
{[%clk 0:02:51]} 19... Nxe5 {[%clk 0:02:48.8]} 20. dxe5 {[%clk 0:02:50.7]} 20...
Qe7 {[%clk 0:02:45.5]} 21. Rd6 {[%clk 0:02:50.7]} 21... Rc7 {[%clk 0:02:41.4]}
22. Red1 {[%clk 0:02:51.1]} 22... Bxe4 {[%clk 0:02:39.1]} 23. Qf4 {[%clk
0:02:42.3]} 23... Ba8 {[%clk 0:02:28.8]} 24. R1d3 {[%clk 0:02:41]} 24... Kh8
{[%clk 0:02:13.6]} 25. Rg3 {[%clk 0:02:37.8]} 25... Rfc8 {[%clk 0:02:10.5]} 26.
Kh2 {[%clk 0:02:37.5]} 26... Rc3 {[%clk 0:02:06.6]} 27. Rdd3 {[%clk 0:02:23.4]}
27... Rxd3 {[%clk 0:02:01.8]} 28. Rxd3 {[%clk 0:02:24.3]} 28... Bb7 {[%clk
0:01:51.6]} 29. Kh3 {[%clk 0:02:20.4]} 29... Kg8 {[%clk 0:01:48.9]} 30. Qd2
{[%clk 0:02:19.8]} 30... Qc7 {[%clk 0:01:35.9]} 31. Rd7 {[%clk 0:02:08.1]} 31...
Qc6 {[%clk 0:01:35.3]} 32. f3 {[%clk 0:02:08.1]} 32... b5 {[%clk 0:01:21.1]} 33.
Kh2 {[%clk 0:01:56.3]} 33... a5 {[%clk 0:01:16.2]} 34. Bd1 {[%clk 0:01:54]}
34... b4 {[%clk 0:01:12.8]} 35. Be2 {[%clk 0:01:54]} 35... Qc3 {[%clk
0:01:06.4]} 36. Rd8+ {[%clk 0:01:41.7]} 36... Kh7 {[%clk 0:00:56.8]} 37. Bd3+
{[%clk 0:01:09.8]} 37... g6 {[%clk 0:00:56.2]} 38. Qf4 {[%clk 0:01:05.7]} 38...
Qc7 {[%clk 0:00:43.8]} 39. Rd6 {[%clk 0:00:43.1]} 39... Qe7 {[%clk 0:00:23.2]}
40. h5 {[%clk 0:00:42.3]} 40... Bd5 {[%clk 0:00:18.2]} 41. Qg4 {[%clk
0:00:34.5]} 41... Rg8 {[%clk 0:00:13.4]} 42. Ra6 {[%clk 0:00:28.3]} 42... Bxa2
{[%clk 0:00:09.9]} 43. Rxa5 {[%clk 0:00:25.1]} 43... Bd5 {[%clk 0:00:10.3]} 44.
hxg6+ {[%clk 0:00:21.9]} 44... fxg6 {[%clk 0:00:09.4]} 45. Qd4 {[%clk
0:00:22.1]} 45... Rg7 {[%clk 0:00:07.6]} 46. Rb5 {[%clk 0:00:19.5]} 46... b3
{[%clk 0:00:07.8]} 47. Rb8 {[%clk 0:00:16.7]} 47... h5 {[%clk 0:00:04.2]} 48.
Qf4 {[%clk 0:00:14.8]} 48... Rf7 {[%clk 0:00:03.6]} 49. Qg3 {[%clk 0:00:12.9]}
49... Rg7 {[%clk 0:00:04.1]} 50. Qh3 {[%clk 0:00:12.2]} 50... Qg5 {[%clk
0:00:03.9]} 51. Rb4 {[%clk 0:00:06.8]} 51... Qxe5+ {[%clk 0:00:04]} 52. f4
{[%clk 0:00:07.4]} 52... Qf6 {[%clk 0:00:04.6]} 53. Qxh5+ {[%clk 0:00:07.8]}
53... Kg8 {[%clk 0:00:05]} 54. Rb8+ {[%clk 0:00:08.1]} 54... Kf7 {[%clk
0:00:05.4]} 55. Qg4 {[%clk 0:00:07.2]} 55... Rh7+ {[%clk 0:00:04.5]} 56. Kg3
{[%clk 0:00:06.1]} 56... b2 {[%clk 0:00:03.2]} 57. Rxb2 {[%clk 0:00:05.8]} 57...
Rg7 {[%clk 0:00:01.9]} 58. Rc2 {[%clk 0:00:04.8]} 58... Qd4 {[%clk 0:00:02]} 59.
Qe2 {[%clk 0:00:02.9]} 59... Kf6 {[%clk 0:00:01.7]} 60. Qe5+ {[%clk 0:00:03.3]}
60... Qxe5 {[%clk 0:00:01.7]} 61. fxe5+ {[%clk 0:00:04.2]} 61... Kxe5 {[%clk
0:00:02.6]} 62. Re2+ {[%clk 0:00:05]} 62... Kf6 {[%clk 0:00:03.3]} 63. Bc2
{[%clk 0:00:05.5]} 63... g5 {[%clk 0:00:03.7]} 64. Rf2+ {[%clk 0:00:06.4]} 64...
Ke7 {[%clk 0:00:04.1]} 65. Rd2 {[%clk 0:00:07.2]} 65... Kd6 {[%clk 0:00:04.5]}
66. Bd1 {[%clk 0:00:07.9]} 66... Ke5 {[%clk 0:00:05.1]} 67. Bg4 {[%clk
0:00:08.5]} 67... Rd7 {[%clk 0:00:05.2]} 68. Re2+ {[%clk 0:00:09.1]} 68... Kf6
{[%clk 0:00:05.7]} 69. Rf2+ {[%clk 0:00:09.6]} 69... Kg6 {[%clk 0:00:06.3]} 70.
Rf8 {[%clk 0:00:09.3]} 70... Rd6 {[%clk 0:00:04.9]} 71. Rh8 {[%clk 0:00:09.7]}
71... Kf6 {[%clk 0:00:05.2]} 72. Rh6+ {[%clk 0:00:08.6]} 72... Ke5 {[%clk
0:00:05.6]} 73. Rg6 {[%clk 0:00:09.2]} 73... Be4 {[%clk 0:00:05.3]} 74. Rxg5+
{[%clk 0:00:09.7]} 74... Kd4 {[%clk 0:00:05.9]} 75. Ra5 {[%clk 0:00:10]} 75...
e5 {[%clk 0:00:05.1]} 76. Ra4+ {[%clk 0:00:10.7]} 76... Ke3 {[%clk 0:00:05.4]}
77. Ra3+ {[%clk 0:00:10.7]} 77... Bd3 {[%clk 0:00:05.2]} 78. Bf5 {[%clk
0:00:06.5]} 78... e4 {[%clk 0:00:05.6]} 79. Kh4 {[%clk 0:00:07.1]} 79... Rf6
{[%clk 0:00:05.7]} 80. g4 {[%clk 0:00:07.5]} 80... Kf4 {[%clk 0:00:05.5]} 81.
Kh5 {[%clk 0:00:06.3]} 81... Rf8 {[%clk 0:00:05.8]} 82. Kg6 {[%clk 0:00:06.5]}
82... Rh8 {[%clk 0:00:06]} 83. Kf6 {[%clk 0:00:07.1]} 83... Rf8+ {[%clk
0:00:06.1]} 84. Kg7 {[%clk 0:00:06.3]} 84... Rd8 {[%clk 0:00:04.7]} 85. Kf6
{[%clk 0:00:05]} 85... Rf8+ {[%clk 0:00:04.8]} 86. Ke7 {[%clk 0:00:05.5]} 86...
Rb8 {[%clk 0:00:05.7]} 87. Be6 {[%clk 0:00:05.3]} 87... Rb7+ {[%clk 0:00:04.7]}
88. Kf6 {[%clk 0:00:05.8]} 88... Rb6 {[%clk 0:00:05]} 89. Ra4 {[%clk 0:00:05.7]}
89... Kf3 {[%clk 0:00:03.4]} 90. g5 {[%clk 0:00:06.2]} 90... e3 {[%clk
0:00:03.7]} 91. g6 {[%clk 0:00:06]} 91... Bxg6 {[%clk 0:00:03.8]} 92. Ke5 {[%clk
0:00:02.6]} 92... Bc2 {[%clk 0:00:04.1]} 93. Bg4+ {[%clk 0:00:02.6]} 93... Kf2
{[%clk 0:00:04.2]} 94. Ra2 {[%clk 0:00:02.9]} 94... Rc6 {[%clk 0:00:04.3]} 95.
Bf5 {[%clk 0:00:02.2]} 95... e2 {[%clk 0:00:04.8]} 96. Bxc2 {[%clk 0:00:02.2]}
96... e1=Q+ {[%clk 0:00:05.2]} 97. Be4+ {[%clk 0:00:02.9]} 97... Kg3 {[%clk
0:00:04.1]} 98. Rg2+ {[%clk 0:00:03.2]} 98... Kh3 {[%clk 0:00:04]} 99. Rg5
{[%clk 0:00:02.1]} 99... Rc5+ {[%clk 0:00:04.2]} 100. Kf4 {[%clk 0:00:02.5]}
100... Rxg5 {[%clk 0:00:05.1]} 101. Bg2+ {[%clk 0:00:02.2]} 101... Kh2 {[%clk
0:00:05]} 102. Bf3 {[%clk 0:00:02.2]} 102... Qg3+ {[%clk 0:00:05.5]} 103. Ke3
{[%clk 0:00:02.4]} 103... Qe5+ {[%clk 0:00:05.5]} 104. Kf2 {[%clk 0:00:02.2]}
104... Qd4+ {[%clk 0:00:05.8]} 105. Ke1 {[%clk 0:00:01.5]} 105... Re5+ {[%clk
0:00:06.1]} 106. Be4 {[%clk 0:00:01.7]} 106... Rxe4+ {[%clk 0:00:06.3]} 107. Kf1
{[%clk 0:00:02.6]} 107... Qd1+ {[%clk 0:00:06.1]} 108. Kf2 {[%clk 0:00:02.9]}
108... Qe2# {[%clk 0:00:07]} 0-1

[Event "Early-Titled-Tuesday-Blitz-December-26-2023"]
[Site "Chess.com"]
[Date "2023.12.26"]
[Round "10"]
[White "UK_23"]
[Black "IlanSchnaider"]
[Result "1-0"]
[WhiteElo "2369"]
[BlackElo "2654"]
[TimeControl "180+1"]
[EndTime "9:50:15 PST"]
[Termination "UK_23 won by resignation"]

1. e4 {[%clk 0:02:59.2]} 1... c5 {[%clk 0:02:59.2]} 2. Nf3 {[%clk 0:02:57.2]}
2... d6 {[%clk 0:02:59.7]} 3. Bb5+ {[%clk 0:02:56.9]} 3... Bd7 {[%clk
0:02:59.9]} 4. Bxd7+ {[%clk 0:02:55.1]} 4... Qxd7 {[%clk 0:03:00.8]} 5. c4
{[%clk 0:02:55.4]} 5... e5 {[%clk 0:03:01.1]} 6. Nc3 {[%clk 0:02:54.4]} 6... Ne7
{[%clk 0:03:01.2]} 7. O-O {[%clk 0:02:54.6]} 7... f5 {[%clk 0:03:00.6]} 8. d3
{[%clk 0:02:53.8]} 8... Nbc6 {[%clk 0:03:00.4]} 9. Nd5 {[%clk 0:02:53.3]} 9...
g6 {[%clk 0:03:00.7]} 10. Nf6+ {[%clk 0:02:51.8]} 10... Kd8 {[%clk 0:03:01.2]}
11. Nxd7 {[%clk 0:02:52.7]} 11... Kxd7 {[%clk 0:03:02.1]} 12. Bg5 {[%clk
0:02:51.4]} 12... Bg7 {[%clk 0:03:02.3]} 13. a3 {[%clk 0:02:51.2]} 13... Nd4
{[%clk 0:03:00.4]} 14. Nxd4 {[%clk 0:02:50.9]} 14... exd4 {[%clk 0:03:00.8]} 15.
Bxe7 {[%clk 0:02:50.9]} 15... Kxe7 {[%clk 0:03:01.7]} 16. exf5 {[%clk
0:02:51.2]} 16... gxf5 {[%clk 0:03:02.6]} 17. Qh5 {[%clk 0:02:51]} 17... Raf8
{[%clk 0:03:00.5]} 18. Rfe1+ {[%clk 0:02:50.1]} 18... Kd7 {[%clk 0:03:00.8]} 19.
b4 {[%clk 0:02:48.2]} 19... b6 {[%clk 0:02:59.1]} 20. bxc5 {[%clk 0:02:48.1]}
20... dxc5 {[%clk 0:03:00]} 21. Re2 {[%clk 0:02:47]} 21... f4 {[%clk 0:02:46]}
22. Qd5+ {[%clk 0:02:42.6]} 22... Kc7 {[%clk 0:02:44.1]} 23. Re7+ {[%clk
0:02:42.2]} 1-0

[Event "Early-Titled-Tuesday-Blitz-December-26-2023"]
[Site "Chess.com"]
[Date "2023.12.26"]
[Round "10"]
[White "Viktor_Poddubnyi"]
[Black "mariofs"]
[Result "1-0"]
[WhiteElo "2371"]
[BlackElo "2214"]
[TimeControl "180+1"]
[EndTime "9:50:24 PST"]
[Termination "Viktor_Poddubnyi won by resignation"]

1. e4 {[%clk 0:03:00.9]} 1... c6 {[%clk 0:03:00.9]} 2. d4 {[%clk 0:03:00.6]}
2... d5 {[%clk 0:03:01]} 3. exd5 {[%clk 0:03:01.1]} 3... cxd5 {[%clk 0:03:01.4]}
4. c4 {[%clk 0:03:01.2]} 4... Nf6 {[%clk 0:03:00.5]} 5. Nc3 {[%clk 0:03:01.5]}
5... Nc6 {[%clk 0:03:00.5]} 6. Bg5 {[%clk 0:03:01]} 6... Be6 {[%clk 0:02:37]} 7.
a3 {[%clk 0:03:00.3]} 7... g6 {[%clk 0:02:29.6]} 8. Bxf6 {[%clk 0:02:59.9]} 8...
exf6 {[%clk 0:02:29.8]} 9. cxd5 {[%clk 0:02:56.1]} 9... Bxd5 {[%clk 0:02:29]}
10. Qe2+ {[%clk 0:02:56.3]} 10... Be7 {[%clk 0:02:27.6]} 11. Qb5 {[%clk
0:02:56.7]} 11... Be6 {[%clk 0:02:12.7]} 12. d5 {[%clk 0:02:56.6]} 12... a6
{[%clk 0:02:09.9]} 13. Qe2 {[%clk 0:02:57.1]} 13... Nd4 {[%clk 0:02:07.7]} 14.
Qe4 {[%clk 0:02:56.9]} 14... f5 {[%clk 0:02:06.8]} 15. Qxd4 {[%clk 0:02:55.4]}
1-0

[Event "Early-Titled-Tuesday-Blitz-December-26-2023"]
[Site "Chess.com"]
[Date "2023.12.26"]
[Round "10"]
[White "GMWSO"]
[Black "Jospem"]
[Result "1/2-1/2"]
[WhiteElo "3066"]
[BlackElo "3077"]
[TimeControl "180+1"]
[EndTime "9:50:52 PST"]
[Termination "Game drawn by agreement"]

1. d4 {[%clk 0:03:00.9]} 1... Nf6 {[%clk 0:02:59.1]} 2. c4 {[%clk 0:02:59.8]}
2... e6 {[%clk 0:02:59.8]} 3. Nc3 {[%clk 0:03:00.2]} 3... Bb4 {[%clk 0:03:00.4]}
4. Qc2 {[%clk 0:03:00.8]} 4... d6 {[%clk 0:03:00.4]} 5. Bd2 {[%clk 0:02:57.4]}
5... c5 {[%clk 0:02:59.3]} 6. a3 {[%clk 0:02:52.4]} 6... Bxc3 {[%clk 0:02:52.2]}
7. Bxc3 {[%clk 0:02:53.3]} 7... cxd4 {[%clk 0:02:52.3]} 8. Bxd4 {[%clk
0:02:54.2]} 8... Nc6 {[%clk 0:02:51.5]} 9. Bc3 {[%clk 0:02:52.7]} 9... d5 {[%clk
0:02:46.9]} 10. cxd5 {[%clk 0:02:49]} 10... exd5 {[%clk 0:02:47.8]} 11. Nf3
{[%clk 0:02:47.1]} 11... O-O {[%clk 0:02:40.3]} 12. e3 {[%clk 0:02:47]} 12...
Ne4 {[%clk 0:02:30.8]} 13. Bd3 {[%clk 0:02:43.2]} 13... Nxc3 {[%clk 0:02:31.1]}
14. Qxc3 {[%clk 0:02:43.2]} 14... Bg4 {[%clk 0:02:27.9]} 15. Nd4 {[%clk
0:02:38.5]} 15... Qf6 {[%clk 0:02:15.7]} 16. Nxc6 {[%clk 0:02:27.5]} 16... Qxc3+
{[%clk 0:02:15.3]} 17. bxc3 {[%clk 0:02:27]} 17... bxc6 {[%clk 0:02:16.2]}
1/2-1/2

[Event "Early-Titled-Tuesday-Blitz-December-26-2023"]
[Site "Chess.com"]
[Date "2023.12.26"]
[Round "10"]
[White "AnaKuchava"]
[Black "ChessSwole"]
[Result "0-1"]
[WhiteElo "2218"]
[BlackElo "2692"]
[TimeControl "180+1"]
[EndTime "9:53:20 PST"]
[Termination "ChessSwole won by resignation"]

1. d4 {[%clk 0:03:00.9]} 1... d5 {[%clk 0:02:56]} 2. Nf3 {[%clk 0:03:00.6]} 2...
Nf6 {[%clk 0:02:55.8]} 3. c4 {[%clk 0:02:59.5]} 3... c6 {[%clk 0:02:55.3]} 4.
Qb3 {[%clk 0:02:59]} 4... dxc4 {[%clk 0:02:53.2]} 5. Qxc4 {[%clk 0:02:57.9]}
5... Bf5 {[%clk 0:02:53.5]} 6. Nc3 {[%clk 0:02:55]} 6... e6 {[%clk 0:02:52.9]}
7. g3 {[%clk 0:02:55.4]} 7... Nbd7 {[%clk 0:02:52.3]} 8. Bg2 {[%clk 0:02:55.8]}
8... Be7 {[%clk 0:02:52.8]} 9. O-O {[%clk 0:02:56]} 9... O-O {[%clk 0:02:52.7]}
10. Re1 {[%clk 0:02:55.9]} 10... Ne4 {[%clk 0:02:52.9]} 11. Nh4 {[%clk
0:02:48.3]} 11... Bxh4 {[%clk 0:02:51.1]} 12. Nxe4 {[%clk 0:02:46.6]} 12... Be7
{[%clk 0:02:50]} 13. Bf4 {[%clk 0:02:44.2]} 13... Nb6 {[%clk 0:02:49.2]} 14. Qd3
{[%clk 0:02:30.2]} 14... Nd5 {[%clk 0:02:48.6]} 15. Bd2 {[%clk 0:02:26.4]} 15...
a5 {[%clk 0:02:45]} 16. a3 {[%clk 0:02:17.3]} 16... Qb6 {[%clk 0:02:40]} 17. Qc2
{[%clk 0:02:00.4]} 17... Qxd4 {[%clk 0:02:31.3]} 18. Bc3 {[%clk 0:01:47.5]}
18... Nxc3 {[%clk 0:02:21.5]} 19. Qxc3 {[%clk 0:01:46.4]} 19... Qxc3 {[%clk
0:02:21.2]} 20. Nxc3 {[%clk 0:01:43.3]} 20... Bc2 {[%clk 0:02:09.4]} 21. Rac1
{[%clk 0:01:31.1]} 21... Bb3 {[%clk 0:02:07.2]} 22. Ne4 {[%clk 0:01:24.2]} 22...
Rfd8 {[%clk 0:02:02.3]} 23. Nc5 {[%clk 0:01:22.5]} 23... Bxc5 {[%clk 0:02:02.2]}
24. Rxc5 {[%clk 0:01:23.4]} 24... Rd2 {[%clk 0:02:02.1]} 25. Bf3 {[%clk
0:01:14.1]} 25... Rxb2 {[%clk 0:01:59]} 26. Rec1 {[%clk 0:01:12.6]} 26... a4
{[%clk 0:01:54]} 27. R1c3 {[%clk 0:01:08.3]} 27... g6 {[%clk 0:01:52.8]} 28. Rd3
{[%clk 0:01:07.3]} 28... Bd5 {[%clk 0:01:50.3]} 29. e4 {[%clk 0:01:05.2]} 29...
Rb3 {[%clk 0:01:50]} 30. Rd4 {[%clk 0:01:01.8]} 30... Rxf3 {[%clk 0:01:48.7]}
31. exd5 {[%clk 0:01:01.6]} 31... exd5 {[%clk 0:01:49.3]} 0-1

[Event "Early-Titled-Tuesday-Blitz-December-26-2023"]
[Site "Chess.com"]
[Date "2023.12.26"]
[Round "10"]
[White "ZaidejasChEgis"]
[Black "SmirnovTimofey2000"]
[Result "1-0"]
[WhiteElo "2235"]
[BlackElo "2020"]
[TimeControl "180+1"]
[EndTime "9:53:35 PST"]
[Termination "ZaidejasChEgis won on time"]

1. e4 {[%clk 0:03:00.9]} 1... e5 {[%clk 0:02:58.9]} 2. Nf3 {[%clk 0:02:59.8]}
2... Nf6 {[%clk 0:02:58.7]} 3. d4 {[%clk 0:02:58.5]} 3... Nxe4 {[%clk
0:02:58.5]} 4. Bd3 {[%clk 0:02:57.4]} 4... Nc6 {[%clk 0:02:58.1]} 5. Bxe4 {[%clk
0:02:54.1]} 5... d5 {[%clk 0:02:57.3]} 6. dxe5 {[%clk 0:02:20]} 6... dxe4 {[%clk
0:02:53.2]} 7. Qxd8+ {[%clk 0:02:18.7]} 7... Nxd8 {[%clk 0:02:49.6]} 8. Ng5
{[%clk 0:02:14.5]} 8... Nc6 {[%clk 0:02:43.3]} 9. Nc3 {[%clk 0:02:13.6]} 9...
Nxe5 {[%clk 0:02:37.1]} 10. Ngxe4 {[%clk 0:02:09.1]} 10... Bf5 {[%clk
0:02:32.7]} 11. Bf4 {[%clk 0:02:06.7]} 11... Bd6 {[%clk 0:02:04]} 12. Nxd6+
{[%clk 0:02:01.1]} 12... cxd6 {[%clk 0:02:02.8]} 13. O-O-O {[%clk 0:02:00.2]}
13... O-O-O {[%clk 0:01:52.1]} 14. Rhe1 {[%clk 0:01:56.2]} 14... f6 {[%clk
0:01:47.1]} 15. Nd5 {[%clk 0:01:52.5]} 15... Rhe8 {[%clk 0:01:42.8]} 16. f3
{[%clk 0:01:51.5]} 1-0

[Event "Early-Titled-Tuesday-Blitz-December-26-2023"]
[Site "Chess.com"]
[Date "2023.12.26"]
[Round "10"]
[White "Flameboard08"]
[Black "DeyanKostov"]
[Result "0-1"]
[WhiteElo "2554"]
[BlackElo "2493"]
[TimeControl "180+1"]
[EndTime "9:53:36 PST"]
[Termination "DeyanKostov won by resignation"]

1. f4 {[%clk 0:03:00.9]} 1... d5 {[%clk 0:02:58.1]} 2. Nf3 {[%clk 0:03:00.9]}
2... c5 {[%clk 0:02:58.6]} 3. d3 {[%clk 0:03:01.3]} 3... Nc6 {[%clk 0:02:59.1]}
4. e4 {[%clk 0:03:00.5]} 4... dxe4 {[%clk 0:02:58.5]} 5. dxe4 {[%clk 0:03:01.4]}
5... Qxd1+ {[%clk 0:02:59.4]} 6. Kxd1 {[%clk 0:03:01.3]} 6... Bg4 {[%clk
0:02:59.2]} 7. Be3 {[%clk 0:03:01.6]} 7... O-O-O+ {[%clk 0:02:57.5]} 8. Kc1
{[%clk 0:03:01.4]} 8... Bxf3 {[%clk 0:02:50.4]} 9. gxf3 {[%clk 0:03:00.6]} 9...
e5 {[%clk 0:02:46.6]} 10. fxe5 {[%clk 0:03:00.2]} 10... Nxe5 {[%clk 0:02:46.2]}
11. Nd2 {[%clk 0:03:00.8]} 11... Nf6 {[%clk 0:02:38]} 12. Bf4 {[%clk 0:02:54.7]}
12... Bd6 {[%clk 0:02:34.9]} 13. Bg3 {[%clk 0:02:52.1]} 13... Ng6 {[%clk
0:02:29.8]} 14. c3 {[%clk 0:02:32.1]} 14... Bf4 {[%clk 0:02:26.9]} 15. Bh3+
{[%clk 0:02:29.6]} 15... Kc7 {[%clk 0:02:23.8]} 16. Bf5 {[%clk 0:02:28.5]} 16...
Kc6 {[%clk 0:02:17.3]} 17. Rd1 {[%clk 0:02:16.5]} 17... Nh5 {[%clk 0:02:07.8]}
18. Bxf4 {[%clk 0:02:10.3]} 18... Nhxf4 {[%clk 0:02:08.5]} 19. Nc4 {[%clk
0:02:03.3]} 19... b5 {[%clk 0:01:54.5]} 20. Na5+ {[%clk 0:01:54]} 20... Kb6
{[%clk 0:01:52.2]} 21. Nb3 {[%clk 0:01:52.5]} 21... Ne5 {[%clk 0:01:49.6]} 22.
a4 {[%clk 0:00:59.6]} 22... g6 {[%clk 0:01:49.4]} 23. axb5 {[%clk 0:00:53.4]}
23... gxf5 {[%clk 0:01:47.6]} 24. Ra6+ {[%clk 0:00:50.4]} 24... Kxb5 {[%clk
0:01:45]} 25. Ra5+ {[%clk 0:00:47.6]} 25... Kb6 {[%clk 0:01:37.5]} 26. Rg1
{[%clk 0:00:47.3]} 26... Ne2+ {[%clk 0:01:36.4]} 0-1

[Event "Early-Titled-Tuesday-Blitz-December-26-2023"]
[Site "Chess.com"]
[Date "2023.12.26"]
[Round "10"]
[White "PawnEatingZombie"]
[Black "stratacticos"]
[Result "0-1"]
[WhiteElo "2137"]
[BlackElo "1872"]
[TimeControl "180+1"]
[EndTime "9:53:45 PST"]
[Termination "stratacticos won by resignation"]

1. e4 {[%clk 0:03:00.9]} 1... c5 {[%clk 0:02:50.4]} 2. c3 {[%clk 0:03:00.5]}
2... Nf6 {[%clk 0:02:45.3]} 3. e5 {[%clk 0:02:59.4]} 3... Nd5 {[%clk 0:02:45.1]}
4. Nf3 {[%clk 0:02:59.2]} 4... g6 {[%clk 0:02:44.3]} 5. h4 {[%clk 0:02:53.2]}
5... h5 {[%clk 0:02:42.3]} 6. d4 {[%clk 0:02:42.6]} 6... cxd4 {[%clk 0:02:39.3]}
7. cxd4 {[%clk 0:02:43.5]} 7... Bg7 {[%clk 0:02:38.8]} 8. Nc3 {[%clk 0:02:39]}
8... Nxc3 {[%clk 0:02:37.9]} 9. bxc3 {[%clk 0:02:39.1]} 9... d6 {[%clk
0:02:37.3]} 10. Bf4 {[%clk 0:02:33.6]} 10... Nc6 {[%clk 0:02:31.2]} 11. exd6
{[%clk 0:02:25.2]} 11... O-O {[%clk 0:02:27.3]} 12. dxe7 {[%clk 0:02:18.1]}
12... Qxe7+ {[%clk 0:02:27.1]} 13. Be3 {[%clk 0:02:18.4]} 13... Bg4 {[%clk
0:02:19.9]} 14. Be2 {[%clk 0:02:18.4]} 14... Rac8 {[%clk 0:02:15.7]} 15. O-O
{[%clk 0:02:15.5]} 15... Na5 {[%clk 0:02:12.5]} 16. Qa4 {[%clk 0:01:45.3]} 16...
b6 {[%clk 0:02:07.4]} 17. Rac1 {[%clk 0:01:39]} 17... Bd7 {[%clk 0:02:04]} 18.
Bb5 {[%clk 0:01:23.6]} 18... Bg4 {[%clk 0:01:57.4]} 19. Ng5 {[%clk 0:01:19.1]}
19... f6 {[%clk 0:01:52]} 20. Nf3 {[%clk 0:00:49.8]} 20... Bxf3 {[%clk
0:01:48.4]} 21. gxf3 {[%clk 0:00:50.7]} 21... Qe6 {[%clk 0:01:28.3]} 22. Bd7
{[%clk 0:00:41.3]} 22... Qc4 {[%clk 0:01:27.9]} 23. Bxc8 {[%clk 0:00:38.6]}
23... Qxa4 {[%clk 0:01:26.7]} 0-1

[Event "Early-Titled-Tuesday-Blitz-December-26-2023"]
[Site "Chess.com"]
[Date "2023.12.26"]
[Round "10"]
[White "artin10862"]
[Black "Yeritsyaan"]
[Result "1-0"]
[WhiteElo "2905"]
[BlackElo "2643"]
[TimeControl "180+1"]
[EndTime "9:54:04 PST"]
[Termination "artin10862 won by resignation"]

1. d4 {[%clk 0:02:58.9]} 1... Nf6 {[%clk 0:02:59.8]} 2. c4 {[%clk 0:02:58.7]}
2... e6 {[%clk 0:02:59.4]} 3. Nc3 {[%clk 0:02:59.3]} 3... d5 {[%clk 0:02:59.7]}
4. Nf3 {[%clk 0:02:57.3]} 4... Be7 {[%clk 0:02:55.9]} 5. Bf4 {[%clk 0:02:57]}
5... O-O {[%clk 0:02:55.5]} 6. e3 {[%clk 0:02:56.9]} 6... c5 {[%clk 0:02:56]} 7.
dxc5 {[%clk 0:02:51.5]} 7... Bxc5 {[%clk 0:02:56.9]} 8. a3 {[%clk 0:02:51.8]}
8... Nc6 {[%clk 0:02:54.5]} 9. Qc2 {[%clk 0:02:48.7]} 9... Qa5 {[%clk
0:02:46.5]} 10. Rd1 {[%clk 0:02:46.8]} 10... Re8 {[%clk 0:02:37.9]} 11. Be2
{[%clk 0:02:09]} 11... e5 {[%clk 0:02:31.4]} 12. Bg5 {[%clk 0:02:08.2]} 12...
Nd4 {[%clk 0:02:23]} 13. exd4 {[%clk 0:02:00.6]} 13... exd4 {[%clk 0:02:23.9]}
14. b4 {[%clk 0:02:01]} 14... Qxa3 {[%clk 0:02:01]} 15. bxc5 {[%clk 0:02:00.6]}
15... Ne4 {[%clk 0:01:28.8]} 16. Nxe4 {[%clk 0:01:56.9]} 16... dxe4 {[%clk
0:01:29.7]} 17. Nxd4 {[%clk 0:01:56.1]} 17... Qxc5 {[%clk 0:01:18.1]} 18. Be3
{[%clk 0:01:55.4]} 18... Qa5+ {[%clk 0:01:15.1]} 19. Qd2 {[%clk 0:01:54.6]}
19... Qe5 {[%clk 0:01:14.2]} 20. O-O {[%clk 0:01:54]} 20... Bd7 {[%clk
0:01:09.3]} 21. Nb5 {[%clk 0:01:50.3]} 21... Bc6 {[%clk 0:01:06.6]} 22. Bf4
{[%clk 0:01:47.1]} 22... Qf6 {[%clk 0:01:03.3]} 23. Nd6 {[%clk 0:01:44.8]} 23...
Red8 {[%clk 0:01:01.8]} 24. c5 {[%clk 0:01:44.2]} 24... Qg6 {[%clk 0:00:59]} 25.
Qe3 {[%clk 0:01:41.6]} 25... a5 {[%clk 0:00:56.6]} 26. Bc4 {[%clk 0:01:40.9]}
26... Rd7 {[%clk 0:00:54.9]} 27. Be5 {[%clk 0:01:38.8]} 27... a4 {[%clk
0:00:52.8]} 28. Bb2 {[%clk 0:01:37.3]} 28... a3 {[%clk 0:00:52.1]} 29. Bxa3
{[%clk 0:01:37]} 29... h5 {[%clk 0:00:46.3]} 30. h4 {[%clk 0:01:35.7]} 30...
Rxa3 {[%clk 0:00:42]} 31. Qxa3 {[%clk 0:01:35.4]} 31... e3 {[%clk 0:00:42.9]}
32. Qa8+ {[%clk 0:01:31.6]} 32... Kh7 {[%clk 0:00:41.7]} 33. Bd3 {[%clk
0:01:32.2]} 33... f5 {[%clk 0:00:38.2]} 34. Bxf5 {[%clk 0:01:30.2]} 1-0